Cogmind - Beta 16 @@@ ROGUE MODE // 2026.01.02 @ 00:43:36 Player: JustDragon Result: Destroyed by G-34 Mercenary with Small Laser Performance ------------- Evolutions (1) 500 Regions Visited (3) 600 Robots Destroyed (9) 45 Value Destroyed (247) 247 Prototype IDs (1) 20 Alien Tech Used (0) 0 Bonus (0) 0 TOTAL SCORE: 1412 Bonus ------- None Cogmind --------- Core Integrity 0/400 Matter 174/300 Energy 100/100 System Corruption 0% Temperature Cool (6) Movement Core (350) Ox6 Location -9/Materials Parts ------- > --- POWER (1) -------- (None) > --- PROPULSION (3) --- (None) > --- UTILITY (3) ------ Large Storage Unit Weapon Shielding > --- WEAPON (2) ------- (None) > --- INVENTORY (15) --- Light Ion Engine Light Ion Engine Heat Sink Improved Heat Sink Shield Generator Shield Generator Peak State ------------ > --- POWER ------------ Light Ion Engine > --- PROPULSION ------- Light Treads Light Treads > --- UTILITY ---------- Small Storage Unit Shield Generator > --- WEAPON ----------- Improved Medium Laser Light Assault Rifle > --- INVENTORY -------- Light Ion Engine Shield Generator Improved Medium Laser Assault Rifle [Rating: 10] Favorites ----------- Power Light Ion Engine Engine Light Ion Engine Power Core Light Nuclear Core Propulsion Light Treads Treads Light Treads Utility Large Storage Unit Device Shield Generator Storage Large Storage Unit Protection Core Shielding Weapon Assault Rifle Energy Gun Improved Medium Laser Ballistic Gun Assault Rifle Build | -11 -10 -10 -9 ------- Run | Yrd Mat Min Mat Slots Evolved 2 | . . . 2 Power . | . . . . Propulsion 1 | . . . 1 Utility 1 | . . . 1 Weapon . | . . . . Parts Attached 13 | 6 6 . 1 Power 2 | 1 1 . . Engine 1 | 1 . . . Core 1 | . 1 . . Reactor . | . . . . Propulsion 2 | 2 . . . Treads 2 | 2 . . . Leg . | . . . . Wheel . | . . . . Hover . | . . . . Flight . | . . . . Utility 6 | 1 4 . 1 Device 2 | . 2 . . Storage 2 | 1 1 . . Processor . | . . . . Hackware . | . . . . Protection 2 | . 1 . 1 Artifact . | . . . . Weapon 3 | 2 1 . . Energy Gun 1 | . 1 . . Energy Cannon . | . . . . Ballistic Gun 2 | 2 . . . Ballistic Cannon . | . . . . Launcher . | . . . . Special Weapon . | . . . . Impact Weapon . | . . . . Slashing Weapon . | . . . . Piercing Weapon . | . . . . Special Melee Weapon . | . . . . Unidentified Prototypes 1 | . 1 . . Parts Lost 6 | . 2 . 4 Power 1 | . . . 1 Propulsion 2 | . 1 . 1 Utility 1 | . . . 1 Weapon 2 | . 1 . 1 Highest Loss Streak 4 | . 1 . 4 To Critical Strikes . | . . . . Average Backups 3 | 1 3 6 5 Power 1 | . 1 2 2 Propulsion . | . . . . Utility 2 | . 2 4 3 Weapon . | . . . . Tool/Special . | . . . . Unused Backups 4 | . 2 . 2 Power 1 | . . . 1 Propulsion . | . . . . Utility 2 | . 1 . 1 Weapon 1 | . 1 . . Tool/Special . | . . . . Average Slot Usage (%) 83 | . 92 71 43 Engine 8 | . 11 . . Core 3 | . 2 14 6 Treads 22 | . 26 14 7 Device 8 | . 10 . . Storage 13 | . 14 14 11 Protection 4 | . 2 14 12 Ballistic Gun 20 | . 23 14 6 Peak Build Rating 10 | 6 10 8 8 Average Rating 7 | 4 7 8 5 On Entrance 5 | . 6 8 8 Avg Prop Armor Cover (%) . | . . . . Naked Turns . | . . . . Heaviest Build 28 | 11 28 28 28 Greatest Support 40 | 40 40 20 20 Greatest Overweight (x) 7 | . 1 1 7 Average Overweight (x) . | . . 1 3 Largest Inventory Capacity 15 | 8 15 15 15 Average Capacity 12 | 7 13 15 15 Most Carried 7 | 5 7 6 6 Average Carried 3 | 1 3 6 5 Final Capacity 15 | 8 15 15 15 Final Carried 6 | 1 6 6 6 Class Distribution -------------------- 100% | Mutant Dominant Class ---------------- Mutant | -10/Materials Mutant | -10/Mines Mutant | -9/Materials Resources | -11 -10 -10 -9 ----------- Run | Yrd Mat Min Mat Matter Collected 378 | 79 264 . 35 Remotely . | . . . . Salvage Created 299 | . 264 . 35 Parts 19 | . 17 . 2 Haulers Intercepted . | . . . . Recyclers Shooed . | . . . . Parts Field Recycled . | . . . . Retrieved Matter . | . . . . Parts Self-Destructed . | . . . . Prevented . | . . . . Parts Restored . | . . . . Kills | -11 -10 -10 -9 ------- Run | Yrd Mat Min Mat Combat Hostiles Destroyed 9 | . 8 . 1 Guns 9 | . 8 . 1 Classes Destroyed 2 | . 2 . . Swarmer 3 | . 3 . . Grunt 6 | . 5 . 1 Best Kill Streak 2 | . 2 . 1 Combat Bots Only 2 | . 2 . 1 Max Kills in Single Turn 1 | . 1 . 1 Gunslinging . | . . . . Exploded . | . . . . Melee . | . . . . Uniques/NPCs Destroyed . | . . . . Combat | -11 -10 -10 -9 -------- Run | Yrd Mat Min Mat Hostile Shots Fired 172 | . 104 . 68 Missed 44 | . 31 . 13 Hits 128 | . 73 . 55 Projectile 128 | . 73 . 55 Critical Strikes 2 | . 1 . 1 Damage Taken 1320 | . 620 . 700 Core 543 | . 135 . 408 Absorbed by Shields 171 | . 171 . . Redirected to Shielding 55 | . 6 . 49 Core Remaining (%) 73 | 100 . 46 . Volleys Fired 48 | . 39 . 9 Largest 2 | . 2 . 1 Hottest 40 | . 40 . 20 Shots Fired 68 | . 59 . 9 Gun 68 | . 59 . 9 Cannon . | . . . . Launcher . | . . . . Special . | . . . . Kinetic 68 | . 59 . 9 Thermal . | . . . . Explosive . | . . . . Electromagnetic . | . . . . Robot Hit Streak 7 | . 7 . 4 Robot Miss Streak 5 | . 5 . 3 Penetration Max . | . . . . Secondary Targets 2 | . 2 . . Max Gunslinging Chain 1 | . 1 . . Shots Hit Robots 40 | . 35 . 5 Core Hits 16 | . 15 . 1 Critical Kills . | . . . . Critical Parts Destroyed 1 | . 1 . . Critical Strikes 1 | . 1 . . Destroy 1 | . 1 . . Melee Attacks . | . . . . Impact . | . . . . Slashing . | . . . . Piercing . | . . . . Sneak Attacks . | . . . . Combat Hostiles . | . . . . Follow-up Attacks . | . . . . Damage Inflicted 517 | . 438 . 79 Guns 517 | . 438 . 79 Cannons . | . . . . Explosions . | . . . . Melee . | . . . . Ramming . | . . . . Kinetic 517 | . 438 . 79 Thermal . | . . . . Explosive . | . . . . Electromagnetic . | . . . . Impact . | . . . . Slashing . | . . . . Piercing . | . . . . Highest Corruption . | . . . . Average Corruption . | . . . . Corruption Purged . | . . . . Corruption Blocked . | . . . . Overload Shots . | . . . . Overflow Damage . | . . . . Projectiles . | . . . . Explosions . | . . . . Melee . | . . . . Knockbacks . | . . . . Impact . | . . . . Kinetic . | . . . . Secondary . | . . . . Self-Inflicted Damage . | . . . . Shots . | . . . . Rammed . | . . . . Targets Rammed . | . . . . Kicked . | . . . . Crushed . | . . . . Highest Temperature 12 | . 12 . 5 Average Temperature 5 | . 6 . 4 Received Heat Transfer 694 | . 268 . 426 Siege Activations . | . . . . Martial Activations . | . . . . Shielding Activations . | . . . . Robots Disrupted . | . . . . Combat Hostiles . | . . . . Robots Corrupted . | . . . . Combat Hostiles . | . . . . Parts Fried . | . . . . Impact Corruptions . | . . . . Robots Melted . | . . . . Combat Hostiles . | . . . . Parts Melted . | . . . . Heat Transferred . | . . . . Parts Sabotaged . | . . . . Parts Stolen . | . . . . Parts Stripped . | . . . . Power Chain Reactions . | . . . . Alert | -11 -10 -10 -9 ------- Run | Yrd Mat Min Mat Maximum Alert Level . | . . . . Low Security (%) 100 | 100 100 100 100 Level 1 . | . . . . Level 2 . | . . . . Level 3 . | . . . . Level 4 . | . . . . Level 5 . | . . . . High Security . | . . . . Max Security . | . . . . Peak Influence 45 | . 45 9 20 Initial 9 | . . 9 . Average 8 | . 11 2 . Influence Increases 229 | . 209 . 20 Destroy 0b10 Robot/C 180 | . 160 . 20 Destroy Leader 30 | . 30 . . Successful Hack 4 | . 4 . . Lose Combat Pursuer 15 | . 15 . . Influence Decreases 229 | . 183 26 20 Entered New Map 17 | . . 17 . Time Decay 192 | . 183 9 . Lost Part 20 | . . . 20 Squads Dispatched 2 | . 1 . 1 Investigation 1 | . 1 . . Extermination . | . . . . Reinforcement 1 | . . . 1 Assault . | . . . . Garrison . | . . . . Intercept . | . . . . Searches Triggered . | . . . . Construction Impeded . | . . . . Haulers Reinforced . | . . . . Active Scanning Responses . | . . . . Cargo Convoy Interrupts . | . . . . Stealth | -11 -10 -10 -9 --------- Run | Yrd Mat Min Mat Distress Signals 1 | . 1 . . Communications Jammed . | . . . . Distress Signals . | . . . . Times Spotted 14 | . 10 . 4 Peak Tracking Total 4 | . 4 . 3 Tactical Retreats 1 | . 1 . . Traps | -11 -10 -10 -9 ------- Run | Yrd Mat Min Mat Traps Triggered 1 | . 1 . . Indirectly . | . . . . Trap Hack Attempts . | . . . . Triggered . | . . . . Disarmed . | . . . . Reprogrammed . | . . . . Reused . | . . . . Traps Extracted . | . . . . Installed . | . . . . Triggered . | . . . . Machines | -11 -10 -10 -9 ---------- Run | Yrd Mat Min Mat Machines Disabled . | . . . . Max in Single Turn . | . . . . Machines Repaired . | . . . . Machines Dismantled . | . . . . Machines Sabotaged . | . . . . Overloaded Fab Kills . | . . . . Hacking | -11 -10 -10 -9 --------- Run | Yrd Mat Min Mat Machines Accessed 5 | . 5 . . Terminals 4 | . 4 . . Fabricators . | . . . . Repair Stations . | . . . . Recycling Units 1 | . 1 . . Scanalyzers . | . . . . Garrison Access . | . . . . Total Hacks 12 | . 12 . . Successful 11 | . 11 . . Failed 1 | . 1 . . Catastrophic . | . . . . Database Lockouts . | . . . . Manual 1 | . 1 . . Terminals 10 | . 10 . . Fabricators . | . . . . Repair Stations . | . . . . Recycling Units 2 | . 2 . . Scanalyzers . | . . . . Garrison Access . | . . . . Terminal Hacks 9 | . 9 . . Record 8 | . 8 . . Dispatch Records 1 | . 1 . . Fabricator Hacks . | . . . . Repair Station Hacks . | . . . . Recycling Unit Hacks 2 | . 2 . . Process 1 | . 1 . . Report Inventory 1 | . 1 . . Scanalyzer . | . . . . Garrison Access Hacks . | . . . . Unauthorized Hacks . | . . . . Terminals . | . . . . Fabricators . | . . . . Repair Stations . | . . . . Recycling Units . | . . . . Scanalyzers . | . . . . Garrison Access . | . . . . Data Cores Recovered . | . . . . Used . | . . . . Hacking Detections 3 | . 3 . . Full Trace Events 1 | . 1 . . Feedback Events . | . . . . Feedback Blocked . | . . . . Robot Schematics Acquired . | . . . . Robots Built . | . . . . Authchips . | . . . . Time . | . . . . Total Robot Build Rating . | . . . . Part Schematics Acquired . | . . . . Parts Built . | . . . . Authchips . | . . . . Time . | . . . . Total Part Build Rating . | . . . . Part Studies Acquired . | . . . . Parts Repaired . | . . . . Time . | . . . . Parts Recycled . | . . . . Recycled Matter 35 | . 35 . . Retrieved Matter . | . . . . Retrieved Components . | . . . . Parts Scanalyzed . | . . . . Part Schematics Acquired . | . . . . Parts Damaged . | . . . . Bothacking | -11 -10 -10 -9 ------------ Run | Yrd Mat Min Mat Used RIF Installer . | . . . . Robots Hacked . | . . . . Non-combat . | . . . . Combat . | . . . . Robot Hacks Applied . | . . . . Relay Couplers Released . | . . . . Fabnet Peak Effective % . | . . . . Robots Rewired . | . . . . Allies Hacked . | . . . . Hacks Repelled . | . . . . Allies | -11 -10 -10 -9 -------- Run | Yrd Mat Min Mat Total Allies . | . . . . Largest Group . | . . . . Highest-Rated Group . | . . . . Highest-Rated Ally . | . . . . Total Orders . | . . . . Ally Attacks . | . . . . Total Damage . | . . . . Kills . | . . . . Allies Corrupted . | . . . . Allies Melted . | . . . . Intel | -11 -10 -10 -9 ------- Run | Yrd Mat Min Mat Active Infowar (turns) . | . . . . Robot Analysis Total . | . . . . Derelict Logs Recovered . | . . . . Drone Launches . | . . . . Drone Recoveries . | . . . . Exploration | -11 -10 -10 -9 ------------- Run | Yrd Mat Min Mat Turns Passed 1086 | 85 787 82 132 Spaces Moved 548 | 67 407 35 39 Core 46 | 31 . . 15 Treads 502 | 36 407 35 24 Legs . | . . . . Wheels . | . . . . Hover . | . . . . Flight . | . . . . Fastest Speed 50 | 50 160 240 240 Average Speed 170 | 109 163 240 287 Slowest Speed 400 | 160 240 240 400 Overloaded Moves . | . . . . Propulsion Burnouts . | . . . . Robots Hopped . | . . . . Potential Cave-ins . | . . . . Cave-ins Triggered . | . . . . Exploration Rate (%) 18 | 4 50 16 4 Regions Visited 3 Branch Regions 1 Pre-discovered Areas . | . . . . Known Exits Taken . | . . . . Unknown Exits Taken 3 | 1 1 1 . Scrap Searched . | . . . . Spaces Dug . | . . . . Terrain Destroyed . | . . . . Melee . | . . . . Projectile . | . . . . AOE . | . . . . Terrain Rammed . | . . . . Walls Destroyed . | . . . . Machines Disabled . | . . . . Actions | -11 -10 -10 -9 --------- Run | Yrd Mat Min Mat Total 643 | 79 480 34 50 Wait . | . . . . Move 545 | 66 406 34 39 Hop . | . . . . Pick Up 19 | 7 11 . 1 Fast Attach . | . . . . Attach 17 | 6 10 . 1 Detach 9 | . 9 . . Swap . | . . . . Drop 5 | . 5 . . Fire 48 | . 39 . 9 Melee . | . . . . Ram . | . . . . Kick . | . . . . Crush . | . . . . Escape Stasis . | . . . . Rewire . | . . . . Trap . | . . . . Miscellaneous . | . . . . Route ------- -11/Scrapyard -10/Materials (discovered 2 exits: [*Mat] / [*Min]) -10/Mines -9/Materials History --------- Turn | Location | Event 14 | -11/Scrapyard | Discovered new exit (range 14) 86 | -11/Scrapyard | Entered Materials 325 | -10/Materials | Build established: Mutant 440 | -10/Materials | Discovered new exit (range 12) 704 | -10/Materials | Discovered new exit (range 15) 817 | -10/Materials | Core integrity fell below 50% 873 | -10/Materials | Entered Mines 921 | -10/Mines | Discovered new exit (range 14) 955 | -10/Mines | Entered Materials 955 | -9/Materials | Evolved 2 slots: Propulsion x1, Utility x1 1049 | -9/Materials | Core integrity fell below 50% 1078 | -9/Materials | Core integrity fell below 20% 1079 | -9/Materials | Lost 4 parts (1p1n1u1w) 1087 | -9/Materials | Destroyed by G-34 Mercenary with Small Laser Last Messages --------------- GOAL=ESCAPE Lgt. Nuclear Core destroyed. G-34 Mercenary destroyed. Assault Rifle destroyed. O-16 Technician: "IFF HANDSHAKE FAILED. SECURING TERMINAL." O-16 Technician uses terminal to summon reinforcements. ALERT: Hostiles spotted, dispatching reinforcements to Terminal M010. O-16 Technician locks terminal. Lgt. Treads destroyed. Critical hit (Burn: +37). Acquired 35 matter. Acquired Heat Sink. K-01 Serf collects debris. Core Shielding destroyed. K-01 Serf collects debris. K-01 Serf cleans the Terminal. K-01 Serf collects debris. Map ----- +----------------------------------------------------+ | ?????????????????????????????????????????????????? | | ?????????????????????????????????????????????????? | | ?????????????????????????????????????????????????? | | ?????????????????????????????????????????????????? | | ?????????????????????????????????????????????????? | | ?????????????????????????????????????????????????? | | ?????????????????????????????????????????????????? | | ?????????????????????????????????????????????????? | | ?????????????????????????????????????????????????? | | ?????????????????????????????????????????????????? | | ?????????????????????????????????????????????????? | | ?????????????????????????????????????????????????? | | ?????????????????????????????????????????????????? | | ?????????????????????????????????????????????????? | | ????????????????????????????? ???????????????????? | | ????????????????????????????? ??????????????????? | | ????????????????????????????? ??############????? | | ????????????????????????#####+##+# # #????? | | ????????????????????????#= # # """ #????? | | ????????????????????????# """ # # """ #????? | | ????????????????????????# """ # + """ #????? | | ????????????????????????# """ = # # #????? | | ??????????????????????# # =o # ]#????? | | ??????????????????????+ + # ########????? | | ??????????????????????# # g""T"" # #???????????? | | ????????????????????????#@ """"" # #???????????? | | ????????????????????????# g # #???????????? | | ????????????????????????########## #???????????? | | ?????????????????????????????????# #???????????? | | ????????????????????????????????? +???????????? | | ?????????????????????????????????# #???????????? | | ?????????????????????????????????# #???????????? | | ?????????????????????????????????# #???????????? | | ?????????????????????????????????# #???????????? | | ?????????????????????????????????# #???????????? | | ?????????????????????????????????? #???????????? | | ?????????????????????????????????? #???????????? | | ?????????????????????????????????? ????????????? | | ?????????????????????????????????????????????????? | | ?????????????????????????????????????????????????? | | ?????????????????????????????????????????????????? | | ?????????????????????????????????????????????????? | | ?????????????????????????????????????????????????? | | ?????????????????????????????????????????????????? | | ?????????????????????????????????????????????????? | | ?????????????????????????????????????????????????? | | ?????????????????????????????????????????????????? | | ?????????????????????????????????????????????????? | | ?????????????????????????????????????????????????? | | ?????????????????????????????????????????????????? | +----------------------------------------------------+ Best States ------------- Heat Dissipation 28 Energy Generation 14 Energy Capacity 160 Matter Stores 174 Matter Capacity 300 Sight Range 16 Terrain Scan Density 10 Core Shielding 20 Weapon Shielding 33 Evasion (%) 50 Recoil Reduction 2 Item Schematics ----------------- None Robot Schematics ------------------ None Fabricated ------------ Nothing Repaired ---------- Nothing Studied --------- None Alien Tech Used ----------------- None Achievements -------------- None Challenges ------------ None Game ------ Seed AssaultFissionBroadsword Manual? 0 Play Time 00:11:58 Cumulative 2.1 hours Start 2026.01.02 @ 00:31:03 End 2026.01.02 @ 00:43:36 Sessions 1 Manual Loads 0 Difficulty Rogue Special Mode None Game No. 8 Rogue 8 Adventurer 0 Explorer 0 Win Type - Total 0 Types 0/0/0/0/0/0/0/0/0/0 Lore% 2 Gallery% 5 Achievement% 4 Wizard Run 0 Options --------- Layout 1 ASCII 0 Keyboard 1 Movement Arrows Keybinds 0 Fullscreen 2 Font 32/SmallcapsGlow Map View 50x40 Zoom Use 0% Tactical HUD 0 Map Filters NONE Filters NONE Steam 1 RUN: 93bd348a-0974-4b9d-a782-6679b2313456